fUSD/lending_fUSD_20260605
["ID","MTS","AMOUNT","RATE_DAILY","PERIOD"]
[424145806,1780609867000,-655.5,0.00037863,11]
[424145834,1780609867000,-500.0,0.00037863,11]
[424145807,1780609867000,-500.0,0.00037863,11]
[424145813,1780609867000,-1168.37,0.00037863,2]
[424145808,1780609867000,-500.0,0.00037863,11]
[424145809,1780609867000,-500.0,0.00037863,11]
[424145810,1780609867000,-500.0,0.00037863,11]
[424145812,1780609867000,-500.0,0.00037863,11]
[424145811,1780609867000,-500.0,0.00037863,11]
[424145825,1780609867000,-813.06,0.00037863,11]
[424145815,1780609867000,-500.0,0.00037863,11]
[424145814,1780609867000,-2862.13,0.00037863,11]
[424145816,1780609867000,-650.34,0.00037863,11]
[424145824,1780609867000,-176.332657,0.00037863,7]
[424145822,1780609867000,-4090.61,0.00037863,11]
[424145817,1780609867000,-3784.18,0.00037863,11]
[424145818,1780609867000,-151.0,0.00037863,30]
[424145819,1780609867000,-704.67,0.00037863,11]
[424145823,1780609867000,-176.332657,0.00037863,7]
[424145820,1780609867000,-176.332657,0.00037863,7]
[424145821,1780609867000,-678.09,0.00037863,11]
[424145828,1780609867000,-500.0,0.00037863,11]
[424145826,1780609867000,-500.0,0.00037863,11]
[424145827,1780609867000,-500.0,0.00037863,11]
[424145832,1780609867000,-500.0,0.00037863,11]
[424145837,1780609867000,-2656.95,0.00037863,11]
[424145830,1780609867000,-4005.24,0.00037863,11]
[424145829,1780609867000,-176.332657,0.00037863,7]
[424145831,1780609867000,-500.0,0.00037863,11]
[424145836,1780609867000,-500.0,0.00037863,11]
[424145874,1780609867000,-500.0,0.00037863,11]
[424145876,1780609867000,-660.86,0.00037863,11]
[424145868,1780609867000,-959.73,0.00037863,11]
[424145900,1780609867000,-500.0,0.00037863,11]
[424145898,1780609867000,-500.0,0.00037863,11]
[424145903,1780609867000,-500.0,0.00037863,11]
[424145912,1780609867000,-500.0,0.00037863,11]
[424145907,1780609867000,-500.0,0.00037863,11]
[424145909,1780609867000,-1666.07,0.00037863,11]
[424145906,1780609867000,-189.13835047,0.00037863,11]
[424145908,1780609867000,-622.52,0.00037863,11]
[424145905,1780609867000,-500.0,0.00037863,11]
[424145904,1780609867000,-583.06,0.00037863,11]
[424145911,1780609867000,-659.75,0.00037863,11]
[424145910,1780609867000,-3559.2,0.00037863,11]
[424145917,1780609867000,-500.0,0.00037863,11]
[424145897,1780609867000,-500.0,0.00037863,11]
[424145919,1780609867000,-36690.62,0.00037863,11]
[424145913,1780609867000,-500.0,0.00037863,11]
[424145925,1780609867000,-500.0,0.00037863,11]
[424145914,1780609867000,-500.0,0.00037863,11]
[424145924,1780609867000,-582.83,0.00037863,11]
[424145918,1780609867000,-11048.61,0.00037863,11]
[424145923,1780609867000,-500.0,0.00037863,11]
[424145921,1780609867000,-500.0,0.00037863,11]
[424145922,1780609867000,-500.0,0.00037863,11]
[424145920,1780609867000,-166.1609479,0.00037863,11]
[424145926,1780609867000,-500.0,0.00037863,11]
[424145928,1780609867000,-500.0,0.00037863,11]
[424145927,1780609867000,-790.85,0.00037863,11]
[424145875,1780609867000,-3678.48,0.00037863,11]
[424145916,1780609867000,-3929.4,0.00037863,11]
[424145899,1780609867000,-500.0,0.00037863,11]
[424145915,1780609867000,-500.0,0.00037863,11]
[424145896,1780609867000,-500.0,0.00037863,11]
[424145877,1780609867000,-500.0,0.00037863,11]
[424145901,1780609867000,-500.0,0.00037863,11]
[424145867,1780609867000,-744.01,0.00037863,11]
[424145870,1780609867000,-1350.45,0.00037863,11]
[424145871,1780609867000,-500.0,0.00037863,11]
[424145869,1780609867000,-693.12,0.00037863,11]
[424145866,1780609867000,-506.64,0.00037863,11]
[424145864,1780609867000,-340.14697572,0.00037863,11]
[424145872,1780609867000,-500.0,0.00037863,11]
[424145878,1780609867000,-500.0,0.00037863,11]
[424145881,1780609867000,-573.72,0.00037863,11]
[424145880,1780609867000,-500.0,0.00037863,11]
[424145882,1780609867000,-2464.65,0.00037863,11]
[424145883,1780609867000,-500.0,0.00037863,11]
[424145873,1780609867000,-500.0,0.00037863,11]
[424145887,1780609867000,-500.0,0.00037863,11]
[424145893,1780609867000,-500.0,0.00037863,11]
[424145890,1780609867000,-290.4257697,0.00037863,11]
[424145894,1780609867000,-500.0,0.00037863,11]
[424145891,1780609867000,-500.0,0.00037863,11]
[424145892,1780609867000,-3108.82,0.00037863,11]
[424145902,1780609867000,-3404.48,0.00037863,11]
[424145889,1780609867000,-500.0,0.00037863,11]
[424145895,1780609867000,-500.0,0.00037863,11]
[424145885,1780609867000,-3429.27,0.00037863,11]
[424145879,1780609867000,-500.0,0.00037863,11]
[424145884,1780609867000,-3896.22,0.00037863,11]
[424145886,1780609867000,-526.23,0.00037863,11]
[424145888,1780609867000,-813.02,0.00037863,11]
[424145965,1780609868000,-192.3259525,0.00037863,11]
[424145962,1780609868000,-623.71,0.00037863,11]
[424145966,1780609868000,-800.05,0.00037863,11]
[424145969,1780609868000,-308.31668743,0.00037863,11]
[424145967,1780609868000,-500.0,0.00037863,11]
[424145971,1780609868000,-151.0,0.00037863,30]
[424145968,1780609868000,-4656.83,0.00037863,11]
[424145972,1780609868000,-2986.9,0.00037863,11]
[424145964,1780609868000,-500.0,0.00037863,11]
[424145960,1780609868000,-500.0,0.00037863,11]
[424145973,1780609868000,-500.0,0.00037863,11]
[424145970,1780609868000,-500.0,0.00037863,11]
[424145974,1780609868000,-1030.09,0.00037863,11]
[424145985,1780609868000,-500.0,0.00037863,11]
[424145975,1780609868000,-7462.52,0.00037863,11]
[424145978,1780609868000,-3011.88,0.00037863,11]
[424145988,1780609868000,-2494.03,0.00037863,11]
[424145977,1780609868000,-500.0,0.00037863,11]
[424145979,1780609868000,-500.0,0.00037863,11]
[424145983,1780609868000,-500.0,0.00037863,11]
[424145980,1780609868000,-500.0,0.00037863,11]
[424145984,1780609868000,-776.69,0.00037863,11]
[424145982,1780609868000,-2822.65,0.00037863,11]
[424145986,1780609868000,-500.0,0.00037863,11]
[424145987,1780609868000,-592.72,0.00037863,11]
[424145981,1780609868000,-500.0,0.00037863,11]
[424145961,1780609868000,-703.64,0.00037863,11]
[424145976,1780609868000,-500.0,0.00037863,11]
[424145957,1780609868000,-187.729829,0.00037863,30]
[424145930,1780609868000,-500.0,0.00037863,11]
[424145959,1780609868000,-4748.28,0.00037863,11]
[424145989,1780609868000,-2885.57,0.00037863,11]
[424145939,1780609868000,-578.2,0.00037863,11]
[424145929,1780609868000,-500.0,0.00037863,11]
[424145937,1780609868000,-4490.65,0.00037863,11]
[424145932,1780609868000,-760.7,0.00037863,11]
[424145935,1780609868000,-565.24,0.00037863,11]
[424145934,1780609868000,-633.0,0.00037863,11]
[424145936,1780609868000,-500.0,0.00037863,11]
[424145938,1780609868000,-500.0,0.00037863,11]
[424145931,1780609868000,-500.0,0.00037863,11]
[424145940,1780609868000,-3194.29,0.00037863,11]
[424145944,1780609868000,-500.0,0.00037863,11]
[424145943,1780609868000,-151.0,0.00037863,30]
[424145958,1780609868000,-1243.01,0.00037863,11]
[424145942,1780609868000,-500.0,0.00037863,11]
[424145941,1780609868000,-500.0,0.00037863,11]
[424145950,1780609868000,-187.729829,0.00037863,30]
[424145948,1780609868000,-500.0,0.00037863,11]
[424145946,1780609868000,-187.729829,0.00037863,30]
[424145947,1780609868000,-1430.55,0.00037863,11]
[424145949,1780609868000,-812.19,0.00037863,11]
[424145951,1780609868000,-500.0,0.00037863,11]
[424145952,1780609868000,-500.0,0.00037863,11]
[424145963,1780609868000,-500.0,0.00037863,11]
[424145953,1780609868000,-187.729829,0.00037863,30]
[424145954,1780609868000,-500.0,0.00037863,11]
[424145955,1780609868000,-549.13,0.00037863,11]
[424145956,1780609868000,-3279.15,0.00037863,11]
[424145945,1780609868000,-4051.49,0.00037863,11]
[424145991,1780609868000,-500.0,0.00037863,11]
[424145933,1780609868000,-500.0,0.00037863,11]
[424145990,1780609868000,-500.0,0.00037863,11]
[424146022,1780609868000,-500.0,0.00037863,11]
[424146021,1780609868000,-2214.43,0.00037863,11]
[424146024,1780609868000,-500.0,0.00037863,11]
[424146039,1780609868000,-500.0,0.00037863,11]
[424146037,1780609868000,-6291.69,0.00037863,11]
[424146032,1780609868000,-500.0,0.00037863,11]
[424146029,1780609868000,-1928.99,0.00037863,11]
[424146034,1780609868000,-500.0,0.00037863,11]
[424146031,1780609868000,-1520.84,0.00037863,11]
[424146035,1780609868000,-500.0,0.00037863,11]
[424146038,1780609868000,-500.0,0.00037863,11]
[424146033,1780609868000,-500.0,0.00037863,11]
[424146036,1780609868000,-500.0,0.00037863,11]
[424146023,1780609868000,-1070.68,0.00037863,11]
[424146028,1780609868000,-500.0,0.00037863,11]
[424146040,1780609868000,-500.0,0.00037863,11]
[424146042,1780609868000,-500.0,0.00037863,11]
[424146043,1780609868000,-151.0,0.00037863,30]
[424146041,1780609868000,-500.0,0.00037863,11]
[424146051,1780609868000,-237.598218,0.00037863,30]
[424146052,1780609868000,-1515.33,0.00037863,11]
[424146045,1780609868000,-8231.59,0.00037863,11]
[424146044,1780609868000,-500.0,0.00037863,11]
[424146049,1780609868000,-500.0,0.00037863,11]
[424146047,1780609868000,-500.0,0.00037863,11]
[424146046,1780609868000,-500.0,0.00037863,11]
[424146048,1780609868000,-500.0,0.00037863,11]
[424145999,1780609868000,-500.0,0.00037863,11]
[424146030,1780609868000,-500.0,0.00037863,11]
[424146020,1780609868000,-1541.829306,0.00037863,28]
[424146050,1780609868000,-500.0,0.00037863,11]
[424146019,1780609868000,-500.0,0.00037863,11]
[424146026,1780609868000,-6161.84,0.00037863,11]
[424145995,1780609868000,-60421.87,0.00037863,11]
[424146001,1780609868000,-500.0,0.00037863,11]
[424145992,1780609868000,-500.0,0.00037863,11]
[424145997,1780609868000,-500.0,0.00037863,11]
[424145993,1780609868000,-256.57751,0.00037863,30]
[424146002,1780609868000,-2870.25,0.00037863,11]
[424145994,1780609868000,-632.67908394,0.00037863,11]
[424145996,1780609868000,-256.57751,0.00037863,30]
[424145998,1780609868000,-500.0,0.00037863,11]
[424146012,1780609868000,-500.0,0.00037863,11]
[424146003,1780609868000,-878.15,0.00037863,11]
[424146013,1780609868000,-1541.829306,0.00037863,28]
[424146005,1780609868000,-2648.57,0.00037863,11]
[424146000,1780609868000,-256.57751,0.00037863,30]
[424146007,1780609868000,-2625.55,0.00037863,11]
[424146006,1780609868000,-256.57751,0.00037863,30]
[424146015,1780609868000,-500.0,0.00037863,11]
[424146017,1780609868000,-1541.829306,0.00037863,28]
[424146016,1780609868000,-500.0,0.00037863,11]
[424146025,1780609868000,-519.83096556,0.00037863,11]
[424146018,1780609868000,-500.0,0.00037863,11]
[424146027,1780609868000,-500.0,0.00037863,11]
[424146011,1780609868000,-500.0,0.00037863,11]
[424146010,1780609868000,-4272.54,0.00037863,11]
[424146009,1780609868000,-3854.17,0.00037863,11]
[424146008,1780609868000,-1541.829306,0.00037863,28]
[424146004,1780609868000,-1659.94,0.00037863,11]
[424146014,1780609868000,-500.0,0.00037863,11]
[424146076,1780609869000,-4385.53,0.00037863,11]
[424146080,1780609869000,-500.0,0.00037863,11]
[424146079,1780609869000,-2550.57,0.00037863,11]
[424146085,1780609869000,-3691.76,0.00037863,11]
[424146081,1780609869000,-2873.17,0.00037863,11]
[424146084,1780609869000,-500.0,0.00037863,11]
[424146083,1780609869000,-500.0,0.00037863,11]
[424146082,1780609869000,-7481.71,0.00037863,11]
[424146091,1780609869000,-3000.27,0.00037863,11]
[424146089,1780609869000,-537.34206548,0.00037863,11]
[424146090,1780609869000,-718.88,0.00037863,11]
[424146097,1780609869000,-500.0,0.00037863,2]
[424146092,1780609869000,-500.0,0.00037863,11]
[424146093,1780609869000,-500.0,0.00037863,11]
[424146094,1780609869000,-522.4,0.00037863,11]
[424146096,1780609869000,-841.83,0.00037863,11]
[424146098,1780609869000,-3164.18,0.00037863,11]
[424146088,1780609869000,-500.0,0.00037863,11]
[424146095,1780609869000,-41097.1,0.00037863,11]
[424146078,1780609869000,-5268.13,0.00037863,11]
[424146087,1780609869000,-500.0,0.00037863,11]
[424146086,1780609869000,-500.0,0.00037863,11]
[424146062,1780609869000,-500.0,0.00037863,11]
[424146074,1780609869000,-4095.64,0.00037863,11]
[424146110,1780609869000,-500.0,0.00037863,11]
[424146055,1780609869000,-500.0,0.00037863,11]
[424146053,1780609869000,-708.32,0.00037863,11]
[424146054,1780609869000,-237.598218,0.00037863,30]
[424146056,1780609869000,-2564.12,0.00037863,11]
[424146057,1780609869000,-3613.85,0.00037863,11]
[424146058,1780609869000,-2613.9,0.00037863,11]
[424146061,1780609869000,-500.0,0.00037863,11]
[424146059,1780609869000,-566.1,0.00037863,11]
[424146063,1780609869000,-500.0,0.00037863,11]
[424146077,1780609869000,-500.0,0.00037863,11]
[424146060,1780609869000,-237.598218,0.00037863,30]
[424146066,1780609869000,-790.25,0.00037863,11]
[424146065,1780609869000,-500.0,0.00037863,11]
[424146075,1780609869000,-28929.84,0.00037863,11]
[424146067,1780609869000,-4478.44,0.00037863,11]
[424146069,1780609869000,-500.0,0.00037863,11]
[424146073,1780609869000,-2404.02,0.00037863,11]
[424146072,1780609869000,-500.0,0.00037863,11]
[424146068,1780609869000,-3702.47,0.00037863,11]
[424146070,1780609869000,-500.0,0.00037863,11]
[424146071,1780609869000,-3412.16,0.00037863,11]
[424146064,1780609869000,-237.598212,0.00037863,30]
[424146109,1780609869000,-500.0,0.00037863,11]
[424146100,1780609869000,-500.0,0.00037863,11]
[424146101,1780609869000,-521.5,0.00037863,11]
[424146127,1780609869000,-500.0,0.00037863,11]
[424146131,1780609869000,-3546.02,0.00037863,11]
[424146134,1780609869000,-714.3,0.00037863,11]
[424146125,1780609869000,-500.0,0.00037863,11]
[424146133,1780609869000,-500.0,0.00037863,11]
[424146129,1780609869000,-500.0,0.00037863,11]
[424146135,1780609869000,-500.0,0.00037863,11]
[424146132,1780609869000,-6377.55,0.00037863,11]
[424146138,1780609869000,-500.0,0.00037863,11]
[424146140,1780609869000,-500.0,0.00037863,11]
[424146142,1780609869000,-3061.44,0.00037863,11]
[424146141,1780609869000,-500.0,0.00037863,11]
[424146148,1780609869000,-500.0,0.00037863,11]
[424146145,1780609869000,-500.0,0.00037863,11]
[424146143,1780609869000,-5003.27,0.00037863,11]
[424146139,1780609869000,-500.0,0.00037863,11]
[424146147,1780609869000,-500.0,0.00037863,11]
[424146149,1780609869000,-2900.38,0.00037863,11]
[424146146,1780609869000,-500.0,0.00037863,11]
[424146150,1780609869000,-500.0,0.00037863,11]
[424146105,1780609869000,-500.0,0.00037863,11]
[424146128,1780609869000,-3298.28,0.00037863,11]
[424146130,1780609869000,-3569.41,0.00037863,11]
[424146144,1780609869000,-3576.54,0.00037863,11]
[424146136,1780609869000,-500.0,0.00037863,11]
[424146099,1780609869000,-601.28,0.00037863,11]
[424146137,1780609869000,-593.00420505,0.00037863,11]
[424146102,1780609869000,-275.51,0.00037863,11]
[424146103,1780609869000,-3629.92,0.00037863,11]
[424146104,1780609869000,-3351.78,0.00037863,11]
[424146107,1780609869000,-3628.99,0.00037863,11]
[424146106,1780609869000,-500.0,0.00037863,11]
[424146111,1780609869000,-500.0,0.00037863,11]
[424146113,1780609869000,-500.0,0.00037863,11]
[424146114,1780609869000,-3101.67,0.00037863,11]
[424146119,1780609869000,-755.81,0.00037863,11]
[424146108,1780609869000,-3494.2,0.00037863,11]
[424146116,1780609869000,-639.59,0.00037863,11]
[424146117,1780609869000,-500.0,0.00037863,11]
[424146120,1780609869000,-500.0,0.00037863,11]
[424146118,1780609869000,-500.0,0.00037863,11]
[424146121,1780609869000,-500.0,0.00037863,11]
[424146112,1780609869000,-527.36,0.00037863,11]
[424146115,1780609869000,-500.0,0.00037863,11]
[424146124,1780609869000,-500.0,0.00037863,11]
[424146123,1780609869000,-4447.46,0.00037863,7]
[424146126,1780609869000,-500.0,0.00037863,11]
[424146122,1780609869000,-670.74,0.00037863,11]
[424146196,1780609870000,-500.0,0.00037863,11]
[424146197,1780609870000,-500.0,0.00037863,11]
[424146195,1780609870000,-500.59,0.00037863,11]
[424146193,1780609870000,-151.0,0.00037863,30]
[424146192,1780609870000,-500.0,0.00037863,11]
[424146216,1780609870000,-500.0,0.00037863,11]
[424146191,1780609870000,-500.0,0.00037863,11]
[424146190,1780609870000,-500.0,0.00037863,11]
[424146185,1780609870000,-500.0,0.00037863,11]
[424146188,1780609870000,-500.0,0.00037863,11]
[424146198,1780609870000,-151.0,0.00037863,30]
[424146184,1780609870000,-5779.59,0.00037863,11]
[424146194,1780609870000,-500.0,0.00037863,11]
[424146199,1780609870000,-500.0,0.00037863,11]
[424146212,1780609870000,-3112.66,0.00037863,11]
[424146202,1780609870000,-500.0,0.00037863,11]
[424146201,1780609870000,-500.0,0.00037863,11]
[424146203,1780609870000,-9429.18,0.00037863,11]
[424146206,1780609870000,-597.61,0.00037863,11]
[424146207,1780609870000,-500.0,0.00037863,11]
[424146205,1780609870000,-500.0,0.00037863,11]
[424146211,1780609870000,-500.0,0.00037863,11]
[424146204,1780609870000,-8627.97,0.00037863,11]
[424146213,1780609870000,-2411.26,0.00037863,11]
[424146209,1780609870000,-4798.39,0.00037863,11]
[424146214,1780609870000,-3339.36,0.00037863,11]
[424146208,1780609870000,-500.0,0.00037863,11]
[424146210,1780609870000,-3359.97,0.00037863,11]
[424146189,1780609870000,-4348.87,0.00037863,11]
[424146200,1780609870000,-500.0,0.00037863,11]
[424146183,1780609870000,-3563.89,0.00037863,11]
[424146156,1780609870000,-500.0,0.00037863,11]
[424146182,1780609870000,-665.08,0.00037863,11]
[424146152,1780609870000,-500.0,0.00037863,11]
[424146162,1780609870000,-7726.77,0.00037863,11]
[424146163,1780609870000,-500.0,0.00037863,11]
[424146164,1780609870000,-500.0,0.00037863,11]
[424146151,1780609870000,-472.99618294,0.00037863,11]
[424146154,1780609870000,-500.0,0.00037863,11]
[424146153,1780609870000,-9837.19,0.00037863,11]
[424146155,1780609870000,-540.18,0.00037863,11]
[424146157,1780609870000,-500.0,0.00037863,11]
[424146159,1780609870000,-500.0,0.00037863,11]
[424146160,1780609870000,-500.0,0.00037863,11]
[424146161,1780609870000,-6206.91,0.00037863,11]
[424146158,1780609870000,-599.46,0.00037863,11]
[424146167,1780609870000,-500.0,0.00037863,11]
[424146181,1780609870000,-500.0,0.00037863,11]
[424146166,1780609870000,-500.0,0.00037863,11]
[424146169,1780609870000,-3104.62,0.00037863,11]
[424146170,1780609870000,-500.0,0.00037863,11]
[424146168,1780609870000,-500.0,0.00037863,11]
[424146176,1780609870000,-500.0,0.00037863,11]
[424146174,1780609870000,-500.0,0.00037863,11]
[424146172,1780609870000,-500.0,0.00037863,11]
[424146175,1780609870000,-500.0,0.00037863,11]
[424146173,1780609870000,-674.62,0.00037863,11]
[424146171,1780609870000,-500.0,0.00037863,11]
[424146178,1780609870000,-706.77,0.00037863,11]
[424146186,1780609870000,-328.62103511,0.00037863,11]
[424146177,1780609870000,-500.0,0.00037863,11]
[424146179,1780609870000,-500.0,0.00037863,11]
[424146180,1780609870000,-4507.58,0.00037863,11]
[424146165,1780609870000,-500.0,0.00037863,11]
[424146215,1780609870000,-500.0,0.00037863,11]
[424146187,1780609870000,-4510.34,0.00037863,11]
[424146220,1780609870000,-500.0,0.00037863,11]
[424146251,1780609870000,-834.811559,0.00037863,7]
[424146246,1780609870000,-776.19,0.00037863,11]
[424146253,1780609870000,-500.0,0.00037863,11]
[424146254,1780609870000,-834.811559,0.00037863,7]
[424146255,1780609870000,-500.0,0.00037863,11]
[424146259,1780609870000,-500.0,0.00037863,11]
[424146258,1780609870000,-500.0,0.00037863,11]
[424146261,1780609870000,-3032.7,0.00037863,11]
[424146260,1780609870000,-500.0,0.00037863,11]
[424146269,1780609870000,-549.75,0.00037863,11]
[424146262,1780609870000,-500.0,0.00037863,11]
[424146263,1780609870000,-3072.47,0.00037863,11]
[424146265,1780609870000,-1171.82,0.00037863,11]
[424146270,1780609870000,-1136.83,0.00037863,11]
[424146248,1780609870000,-500.0,0.00037863,11]
[424146271,1780609870000,-151.0,0.00037863,30]
[424146266,1780609870000,-151.0,0.00037863,30]
[424146267,1780609870000,-3178.87,0.00037863,11]
[424146268,1780609870000,-507.68,0.00037863,11]
[424146273,1780609870000,-500.0,0.00037863,11]
[424146274,1780609870000,-3048.3,0.00037863,11]
[424146275,1780609870000,-500.0,0.00037863,11]
[424146277,1780609870000,-500.0,0.00037863,11]
[424146272,1780609870000,-500.0,0.00037863,11]
[424146276,1780609870000,-500.0,0.00037863,11]
[424146279,1780609870000,-500.0,0.00037863,11]
[424146282,1780609870000,-500.0,0.00037863,11]
[424146281,1780609870000,-619.19695532,0.00037863,11]
[424146278,1780609870000,-2885.83,0.00037863,11]
[424146217,1780609870000,-534.89,0.00037863,11]
[424146264,1780609870000,-15890.34,0.00037863,11]
[424146249,1780609870000,-730.05,0.00037863,11]
[424146280,1780609870000,-2829.34,0.00037863,11]
[424146252,1780609870000,-500.0,0.00037863,11]
[424146219,1780609870000,-500.0,0.00037863,11]
[424146221,1780609870000,-533.68,0.00037863,11]
[424146218,1780609870000,-500.0,0.00037863,11]
[424146222,1780609870000,-500.0,0.00037863,11]
[424146223,1780609870000,-12422.13,0.00037863,11]
[424146224,1780609870000,-500.0,0.00037863,3]
[424146227,1780609870000,-3790.95,0.00037863,11]
[424146229,1780609870000,-500.0,0.00037863,11]
[424146257,1780609870000,-4107.63,0.00037863,11]
[424146225,1780609870000,-500.0,0.00037863,11]
[424146230,1780609870000,-2873.09,0.00037863,11]
[424146228,1780609870000,-500.0,0.00037863,11]
[424146232,1780609870000,-316.60608554,0.00037863,11]
[424146243,1780609870000,-4650.59,0.00037863,11]
[424146244,1780609870000,-4751.19,0.00037863,11]
[424146226,1780609870000,-683.5,0.00037863,11]
[424146231,1780609870000,-500.0,0.00037863,11]
[424146250,1780609870000,-6996.9,0.00037863,11]
[424146242,1780609870000,-500.0,0.00037863,11]
[424146256,1780609870000,-834.811567,0.00037863,7]
[424146247,1780609870000,-834.811559,0.00037863,7]
[424146245,1780609870000,-9643.11,0.00037863,11]
[424146233,1780609870000,-500.0,0.00037863,11]
[424146236,1780609870000,-3336.46,0.00037863,11]
[424146240,1780609870000,-500.0,0.00037863,11]
[424146237,1780609870000,-500.0,0.00037863,11]
[424146238,1780609870000,-500.0,0.00037863,11]
[424146241,1780609870000,-500.0,0.00037863,11]
[424146239,1780609870000,-543.2,0.00037863,11]
[424146235,1780609870000,-12334.13,0.00037863,11]
[424146234,1780609870000,-685.7,0.00037863,11]
[424146328,1780609871000,-3491.63,0.00037863,11]
[424146331,1780609871000,-667.01,0.00037863,11]
[424146325,1780609871000,-500.0,0.00037863,11]
[424146323,1780609871000,-749.673451,0.00037863,30]
[424146322,1780609871000,-3857.65,0.00037863,11]
[424146311,1780609871000,-500.0,0.00037863,11]
[424146321,1780609871000,-500.0,0.00037863,11]
[424146320,1780609871000,-6339.77,0.00037863,11]
[424146319,1780609871000,-5259.59,0.00037863,11]
[424146317,1780609871000,-500.0,0.00037863,11]
[424146318,1780609871000,-500.0,0.00037863,11]
[424146324,1780609871000,-500.0,0.00037863,11]
[424146330,1780609871000,-749.673451,0.00037863,30]
[424146341,1780609871000,-611.11,0.00037863,11]
[424146329,1780609871000,-2401.0,0.00037863,11]
[424146332,1780609871000,-500.0,0.00037863,11]
[424146327,1780609871000,-500.0,0.00037863,11]
[424146333,1780609871000,-749.673459,0.00037863,30]
[424146334,1780609871000,-500.0,0.00037863,11]
[424146335,1780609871000,-500.0,0.00037863,11]
[424146336,1780609871000,-500.0,0.00037863,11]
[424146346,1780609871000,-4252.57,0.00037863,11]
[424146348,1780609871000,-500.0,0.00037863,11]
[424146347,1780609871000,-500.0,0.00037863,11]
[424146337,1780609871000,-500.0,0.00037863,11]
[424146339,1780609871000,-5109.23,0.00037863,11]
[424146338,1780609871000,-6469.94,0.00037863,11]
[424146315,1780609871000,-3111.92,0.00037863,11]
[424146326,1780609871000,-749.673451,0.00037863,30]
[424146314,1780609871000,-500.0,0.00037863,11]
[424146297,1780609871000,-3945.62908,0.00037863,30]
[424146312,1780609871000,-500.0,0.00037863,11]
[424146342,1780609871000,-2024.03,0.00037863,11]
[424146283,1780609871000,-500.0,0.00037863,11]
[424146285,1780609871000,-3945.62908,0.00037863,30]
[424146284,1780609871000,-899.77,0.00037863,11]
[424146288,1780609871000,-500.0,0.00037863,11]
[424146287,1780609871000,-519.99,0.00037863,11]
[424146286,1780609871000,-500.0,0.00037863,11]
[424146290,1780609871000,-3072.94,0.00037863,11]
[424146289,1780609871000,-3255.85,0.00037863,11]
[424146292,1780609871000,-500.0,0.00037863,11]
[424146295,1780609871000,-11634.89,0.00037863,11]
[424146293,1780609871000,-4311.22,0.00037863,11]
[424146294,1780609871000,-3945.62908,0.00037863,30]
[424146291,1780609871000,-3945.62908,0.00037863,30]
[424146296,1780609871000,-557.281833,0.00037863,30]
[424146298,1780609871000,-151.0,0.00037863,30]
[424146299,1780609871000,-7429.85,0.00037863,11]
[424146301,1780609871000,-547.4,0.00037863,11]
[424146303,1780609871000,-500.0,0.00037863,11]
[424146309,1780609871000,-575.9,0.00037863,11]